bitfinex-derivatives/quotes_ETHF0:USTF0_20250807
["timestamp","ask_amount","ask_price","bid_price","bid_amount"]
[1754547222429,1.1184,3702.0,3701.9,1.22206]
[1754547222629,0.7484,3703.0,3701.9,8.92338231]
[1754547222831,1.4197,3703.0,3702.9,1.2724]
[1754547223025,1.1184,3703.0,3702.9,1.7282]
[1754547223629,1.4197,3703.0,3702.9,1.7282]
[1754547224324,1.1184,3703.0,3702.9,1.7282]
[1754547224527,1.4197,3703.0,3702.9,1.7282]
[1754547226434,1.4197,3703.0,3702.9,0.4959]
[1754547226435,0.9793,3703.0,3702.9,0.4959]
[1754547226636,0.9793,3703.0,3702.9,0.9865]
[1754547226828,0.9793,3703.0,3702.9,1.2724]
[1754547227031,40.8,3703.4,3703.0,0.54]
[1754547227337,40.8,3703.4,3703.2,1.7282]
[1754547227338,1.4197,3703.3,3703.2,1.7282]
[1754547227525,38.9,3703.7,3703.2,1.7282]
[1754547227726,1.1184,3703.4,3703.3,2.26815]
[1754547227923,1.4197,3703.4,3703.3,2.26815]
[1754547228630,40.8,3703.6,3703.5,2.26812]
[1754547228834,0.1891,3703.6,3703.5,1.22182]
[1754547229037,1.4197,3703.6,3703.5,1.22182]
[1754547229339,1.4197,3703.6,3703.5,2.26812]
[1754547229836,0.6713,3703.6,3703.5,2.26812]
[1754547230729,0.6713,3703.6,3703.1,0.2176]
[1754547230730,41.5484,3703.8,3703.7,1.67759]
[1754547230936,41.5484,3703.8,3703.7,2.26809]
[1754547231434,0.4822,3703.6,3703.1,0.2176]
[1754547231633,1.4197,3703.4,3703.3,1.98135]
[1754547231937,1.4197,3703.4,3703.3,2.26815]
[1754547233539,1.1184,3703.4,3703.3,2.26815]
[1754547233839,0.6713,3703.4,3703.3,2.26815]
[1754547234837,44.03138231,3703.9,3703.3,1.67765]
[1754547235034,0.6713,3703.4,3703.3,1.67765]
[1754547235337,1.4197,3703.4,3703.3,1.67765]
[1754547235641,1.1184,3703.4,3703.3,2.26815]
[1754547235934,1.7277,3703.4,3703.3,0.84455]
[1754547236135,1.4197,3703.4,3703.3,2.26815]
[1754547236530,0.308,3703.7,3703.6,0.681]
[1754547236737,0.7484,3703.7,3703.6,1.7282]
[1754547236931,0.4471,3703.7,3703.6,1.7282]
[1754547237131,0.4471,3703.7,3703.5,0.53992]
[1754547237132,0.4733,3703.8,3703.7,1.22179]
[1754547237439,0.4733,3703.8,3703.7,1.98219]
[1754547237643,0.4733,3703.8,3703.7,2.26809]
[1754547237843,0.6713,3703.8,3703.7,2.26809]
[1754547238029,1.1184,3703.8,3703.7,2.26809]
[1754547238338,1.4197,3703.8,3703.7,2.26809]
[1754547238538,0.6713,3703.8,3703.7,2.26809]
[1754547239038,0.2842,3703.8,3703.7,2.26809]
[1754547239336,1.4377,3704.1,3704.0,1.7418]
[1754547239543,20.0503,3704.5,3704.4,0.6959]
[1754547239746,20.0503,3704.5,3704.4,1.82659]
[1754547240037,38.888,3704.8,3704.4,1.2868]
[1754547240241,1.3933,3704.6,3704.5,2.28158]
[1754547240435,0.2824,3704.9,3704.6,1.69066]
[1754547240636,1.3933,3704.9,3704.8,1.23563]
[1754547240836,1.3933,3704.9,3704.8,2.28153]
[1754547241143,1.6983,3704.9,3704.8,1.7418]
[1754547241539,1.6983,3704.9,3704.8,1.2868]
[1754547241740,0.704,3704.8,3704.1,0.2715]
[1754547241933,0.305,3704.7,3704.2,1.0459]
[1754547242133,1.3933,3704.6,3704.5,1.7418]
[1754547242742,1.1109,3704.6,3704.5,1.7418]
[1754547243243,1.3933,3704.6,3704.5,1.7418]
[1754547244044,0.9115,3704.6,3704.5,1.7418]
[1754547244249,0.1994,3704.5,3704.4,0.53979]
[1754547244436,1.1109,3704.5,3704.4,1.98669]
[1754547244843,1.1109,3704.5,3704.4,2.28159]
[1754547245145,1.3933,3704.5,3704.4,2.28159]
[1754547245337,1.3933,3704.5,3704.4,1.7418]
[1754547247334,1.1109,3704.5,3704.4,1.7418]
[1754547247541,0.6893,3704.7,3704.6,0.6959]
[1754547247737,1.1109,3704.7,3704.6,0.6959]
[1754547248142,1.1109,3704.7,3704.6,1.7418]
[1754547248346,1.3933,3704.7,3704.6,1.7418]
[1754547252038,1.6983,3704.7,3704.6,1.7418]
[1754547252447,1.6983,3704.7,3704.6,1.2868]
[1754547252646,1.6983,3704.7,3704.1,0.2715]
[1754547252647,1.6983,3704.2,3704.1,0.2715]
[1754547253138,0.1886,3704.2,3704.1,0.9919]
[1754547253343,1.1109,3704.2,3704.1,1.7418]
[1754547253544,1.3933,3704.2,3704.1,1.7418]
[1754547253744,3.51078231,3705.1,3703.5,1.0459]
[1754547253951,0.704,3704.9,3704.3,1.0459]
[1754547254247,0.6893,3704.5,3704.4,1.7418]
[1754547254443,1.3933,3704.8,3704.7,0.6959]
[1754547254650,1.3933,3704.8,3704.7,1.7418]
[1754547254850,1.6983,3704.8,3704.7,1.7418]
[1754547255149,1.6983,3704.8,3704.7,1.2868]
[1754547255342,0.71897582,3705.2,3704.7,1.2868]
[1754547255647,0.71897582,3705.2,3704.7,0.4902]
[1754547255836,0.5397,3705.1,3704.9,0.2949]
[1754547256042,0.5397,3705.1,3704.8,0.2949]
[1754547256239,0.5397,3705.1,3704.7,0.296]
[1754547256240,1.25865582,3705.2,3704.9,0.2949]
[1754547256440,0.53971,3705.0,3704.4,0.2949]
[1754547256649,2.92338231,3704.8,3704.3,0.73401]
[1754547256840,2.92338231,3704.8,3704.5,0.2949]
[1754547257040,2.92338231,3704.8,3704.6,0.2949]
[1754547257242,0.53975,3704.7,3704.4,0.2717]
[1754547257444,0.53975,3704.7,3704.5,0.2949]
[1754547257650,6.53975,3704.7,3704.5,0.2949]
[1754547257950,6.0,3704.7,3704.6,0.2949]
[1754547258152,3.46312231,3704.8,3704.6,0.5121]
[1754547258351,9.46312231,3704.8,3704.6,0.5121]
[1754547258850,9.46312231,3704.8,3704.6,0.2172]
[1754547259053,18.656,3704.7,3704.6,0.2172]
[1754547259440,24.656,3704.7,3704.6,0.2172]
[1754547259849,24.656,3704.7,3702.5,2.61528289]
[1754547259850,0.53986,3704.0,3703.7,0.2949]
[1754547260047,2.92338231,3703.8,3703.3,0.53995]
[1754547260251,40.8,3703.7,3703.4,0.7851]
[1754547260441,40.8,3703.7,3703.5,0.5909]
[1754547260646,40.8,3703.7,3703.6,0.2949]
[1754547261044,46.8,3703.7,3703.6,0.2949]
[1754547261850,46.8,3703.7,3702.8,1.2868]
[1754547262040,2.92338231,3703.4,3702.9,0.9908]
[1754547262242,21.57938231,3703.4,3702.6,0.296]
[1754547262444,21.57938231,3703.4,3702.8,0.83603]
[1754547262646,21.57938231,3703.4,3703.1,1.1509]
[1754547262849,21.57938231,3703.4,3703.3,0.2949]
[1754547263242,41.3399,3703.7,3703.3,0.2949]
[1754547263243,40.8,3703.7,3703.3,2.28175]
[1754547263448,18.658,3703.6,3703.5,0.6959]
[1754547263647,18.658,3703.6,3703.5,1.7418]
[1754547263855,24.659,3703.6,3703.5,1.7418]
[1754547264355,24.659,3703.6,3703.5,0.7851]
[1754547265448,24.659,3703.6,3703.1,0.2949]
[1754547265754,18.659,3703.6,3703.5,0.7851]
[1754547266254,24.651,3703.6,3703.5,0.2949]
[1754547266653,0.53992,3703.5,3703.3,0.2949]
[1754547266861,21.57438231,3703.6,3703.4,0.2949]
[1754547267057,2.92338231,3703.6,3703.5,0.9908]
[1754547267258,21.57338231,3703.6,3703.5,1.7418]
[1754547267555,27.57338231,3703.6,3703.5,0.7851]
[1754547267752,28.11329231,3703.6,3701.8,1.35044]
[1754547267957,28.11329231,3703.6,3702.9,0.751]
[1754547267958,22.11329231,3703.6,3702.9,0.751]
[1754547268153,22.11329231,3703.6,3703.0,0.9908]
[1754547268456,22.11329231,3703.6,3703.1,1.2868]
[1754547268660,22.11329231,3703.6,3703.2,0.296]
[1754547268958,22.11329231,3703.6,3703.2,1.2968]
[1754547269161,28.11329231,3703.6,3703.3,0.9998]
[1754547269360,28.11329231,3703.6,3703.5,0.297]
[1754547270056,28.11329231,3703.6,3702.9,0.297]
[1754547270256,2.92338231,3703.2,3702.7,0.7088]
[1754547270462,18.658,3703.1,3703.0,0.297]
[1754547270855,18.658,3703.1,3703.0,0.588]
[1754547271161,18.658,3703.1,3703.0,0.7824]
[1754547271456,18.658,3703.1,3703.0,0.4914]
[1754547271657,24.658,3703.1,3703.0,0.4914]
[1754547271856,24.658,3703.1,3703.0,0.297]
[1754547272063,24.658,3703.1,3702.9,0.4854]
[1754547272361,18.658,3703.1,3703.0,0.297]
[1754547272560,18.658,3703.1,3703.0,0.588]
[1754547272766,24.657,3703.1,3703.0,1.7479]
[1754547273164,0.54,3703.0,3702.5,1.0058]
[1754547273360,2.92338231,3702.8,3702.7,0.7824]
[1754547273563,0.54005,3702.7,3702.1,1.0391]
[1754547273762,0.54005,3702.7,3702.1,0.4511]
[1754547274066,18.659,3702.8,3702.7,0.1944]
[1754547274368,21.59238231,3702.8,3702.7,1.7479]
[1754547274663,18.669,3702.8,3702.7,1.7479]
[1754547275255,59.469,3702.8,3702.7,1.7479]
[1754547275858,62.39238231,3702.8,3702.7,1.7479]
[1754547276359,62.39238231,3702.8,3702.5,0.297]
[1754547276559,62.39238231,3702.8,3702.7,1.7479]
[1754547276764,62.39238231,3702.8,3702.7,0.297]
[1754547276964,68.39238231,3702.8,3702.7,0.297]
[1754547277465,68.39238231,3702.8,3702.7,0.4914]
[1754547277668,68.39238231,3702.8,3702.7,1.7479]
[1754547278259,40.8,3702.8,3702.7,1.7479]
[1754547278458,59.465,3702.8,3702.7,1.7479]
[1754547279366,40.8,3702.8,3702.7,1.7479]
[1754547279564,59.462,3702.8,3702.7,1.7479]
[1754547280768,61.19506749,3702.8,3702.7,1.7479]
[1754547281661,61.19506749,3702.8,3702.7,1.2968]
[1754547281860,61.19506749,3702.8,3702.7,1.7479]
[1754547282067,61.19506749,3702.8,3702.7,1.2968]
[1754547282669,62.38946424,3702.8,3702.7,1.2968]
[1754547282864,62.38946424,3702.8,3702.7,0.297]
[1754547283071,0.54004,3702.7,3702.5,0.297]
[1754547283372,0.54007,3702.5,3702.3,0.297]
[1754547283567,18.657,3702.4,3701.9,0.54014]
[1754547283768,18.657,3702.4,3702.3,0.1944]
[1754547284163,18.657,3702.4,3702.3,1.2968]
[1754547284772,18.657,3702.4,3702.3,1.7479]
[1754547285459,18.657,3702.4,3700.9,0.21417351]
[1754547285460,0.5401,3702.3,3702.0,0.297]
[1754547285665,21.58246424,3702.2,3702.1,1.7479]
[1754547285861,21.58446424,3702.2,3702.1,1.2968]
[1754547287075,21.58446424,3702.2,3702.1,0.297]
[1754547288770,21.58446424,3702.2,3702.1,0.7824]
[1754547288970,27.58446424,3702.2,3702.1,0.4914]
[1754547289872,27.58446424,3702.2,3702.1,0.7824]
[1754547291377,27.58446424,3702.2,3701.8,0.1944]
[1754547291378,0.54017,3701.9,3701.8,0.1944]
[1754547291579,18.643,3701.9,3701.8,1.7479]
[1754547292078,59.458,3701.9,3701.8,0.7088]
[1754547292472,59.458,3701.9,3701.8,1.7479]
[1754547292973,40.8,3701.9,3701.8,1.7479]
[1754547293273,2.92746424,3702.7,3702.6,0.7824]
[1754547293470,21.58246424,3702.7,3702.6,1.7479]
[1754547293672,22.30252237,3702.7,3702.6,1.7479]
[1754547293977,63.10252237,3702.7,3702.6,1.7479]
[1754547295679,62.38246424,3702.7,3702.6,1.7479]
[1754547295978,43.72746424,3702.7,3702.6,1.7479]
[1754547296176,62.38046424,3702.7,3702.6,1.7479]
[1754547296380,63.10075984,3702.7,3702.6,1.7479]
[1754547296578,62.37746424,3702.7,3702.6,1.7479]
[1754547297080,63.09776092,3702.7,3702.6,1.7479]
[1754547297276,62.37746424,3702.7,3702.6,1.7479]
[1754547297476,63.09791686,3702.7,3702.6,1.7479]
[1754547300976,63.09791686,3702.7,3702.6,0.297]
[1754547301184,69.09791686,3702.7,3702.6,0.297]
[1754547301478,0.54006,3702.6,3702.2,0.2863]
[1754547301685,2.92746424,3702.3,3702.2,0.4779]
[1754547301875,21.56746424,3702.3,3702.2,1.4112]
[1754547302279,21.56746424,3702.3,3702.2,1.7084]
[1754547302878,21.10606032,3702.3,3702.2,1.7084]
[1754547303077,0.54011,3702.2,3701.6,0.5835]
[1754547303274,1.73379983,3701.7,3701.6,0.6782]
[1754547303480,20.37379983,3701.7,3701.6,1.1249]
[1754547303877,20.37379983,3701.7,3701.6,0.2972]
[1754547304083,0.5402,3701.6,3701.1,1.4221]
[1754547304277,0.54023,3701.4,3701.3,0.2972]
[1754547304481,3.0064129,3701.4,3701.3,0.2972]
[1754547304677,0.2007,3701.0,3700.9,0.6707]
[1754547304879,0.5403,3700.9,3700.1,0.54042]
[1754547305079,1.73379983,3700.0,3699.9,2.38418612]
[1754547305279,1.73379983,3700.0,3699.9,8.92463612]
[1754547305582,1.73379983,3700.0,3699.9,2.38418612]
[1754547306377,1.93449983,3700.0,3699.9,2.38418612]
[1754547306685,1.93449983,3700.0,3699.9,2.68138612]
[1754547307185,1.93449983,3700.0,3699.9,0.97298612]
[1754547307488,2.07789983,3700.0,3699.9,0.97298612]
[1754547308285,8.07789983,3700.0,3699.9,0.97298612]
[1754547308478,0.54045,3699.9,3699.4,0.2972]
[1754547308776,2.77833759,3699.5,3699.3,0.4779]
[1754547308975,2.77833759,3699.5,3698.6,1.1249]
[1754547308976,0.54058,3699.1,3698.6,1.1249]
[1754547309183,2.77833759,3698.7,3698.6,0.6782]
[1754547309379,0.54064,3698.6,3698.0,0.2972]
[1754547309685,2.77833759,3698.1,3697.8,0.9246]
[1754547309879,2.77833759,3698.1,3696.9,0.97377568]
[1754547309880,2.77833759,3697.9,3697.1,0.7439]
[1754547310077,2.77833759,3697.7,3697.1,1.57106]
[1754547310290,2.77833759,3697.3,3696.9,0.97377568]
[1754547310477,18.722,3697.2,3696.9,0.97377568]
[1754547310681,0.54086,3697.1,3696.9,0.97377568]
[1754547311189,0.54086,3697.1,3695.5,0.54108]
[1754547311190,0.54093,3696.7,3695.5,0.54108]
[1754547311385,2.77833759,3696.0,3695.7,1.0302]
[1754547311685,2.77833759,3696.0,3694.5,2.77833759]
[1754547311686,18.761,3695.9,3695.8,1.0302]
[1754547312184,18.761,3695.9,3695.8,0.5835]
[1754547312380,18.761,3695.9,3695.8,0.2972]
[1754547313181,59.561,3695.9,3695.4,0.5835]
[1754547313387,59.561,3695.9,3695.5,0.2972]
[1754547313587,2.77833759,3695.6,3694.4,1.0302]
[1754547313887,2.77833759,3694.9,3694.6,1.0302]
[1754547314091,18.768,3694.8,3694.7,0.2972]
[1754547314684,18.768,3694.8,3694.2,0.5835]
[1754547314983,3.31961759,3694.3,3693.9,0.97456652]
[1754547315181,0.5413,3694.1,3693.2,0.5835]
[1754547315380,2.77833759,3693.3,3693.2,1.0302]
[1754547315582,21.57033759,3693.3,3693.2,1.0302]
[1754547315782,2.77833759,3694.0,3693.5,0.5835]
[1754547315983,43.57833759,3693.6,3693.5,1.0302]
[1754547316184,62.37333759,3693.6,3693.5,1.0302]
[1754547316682,62.37333759,3693.6,3691.6,0.21540189]
[1754547316989,62.37333759,3693.6,3693.4,1.0302]
[1754547317183,40.8,3693.6,3693.2,0.5835]
[1754547317488,18.813,3693.5,3693.4,1.0302]
[1754547317679,43.57833759,3693.6,3693.5,1.28529]
[1754547317875,38.927,3694.8,3693.5,1.57159]
[1754547318085,2.77833759,3694.6,3693.3,1.0302]
[1754547318287,2.77833759,3694.2,3693.8,0.5835]
[1754547318492,59.611,3694.1,3694.0,1.0302]
[1754547318786,59.62,3694.1,3694.0,1.0302]
[1754547318988,18.82,3694.1,3694.0,1.0302]
[1754547319191,2.77833759,3694.4,3694.0,0.2972]
[1754547319386,18.819,3694.3,3694.2,0.4467]
[1754547319587,18.819,3694.3,3694.2,1.0302]
[1754547319785,18.819,3694.3,3694.2,0.2972]
[1754547320179,2.77833759,3694.4,3694.2,0.5835]
[1754547320385,2.77833759,3694.6,3694.3,1.57147]
[1754547320586,2.77833759,3695.0,3694.5,1.57144]
[1754547320784,2.77833759,3695.0,3694.9,0.733]
[1754547320982,38.945,3695.1,3695.0,1.57137]
[1754547321194,2.77833759,3695.1,3695.0,1.0302]
[1754547321496,2.77833759,3695.7,3695.5,0.2863]
[1754547321686,18.837,3695.6,3695.2,1.0302]
[1754547321886,2.77833759,3695.3,3695.2,1.0302]
[1754547322287,38.954,3696.2,3695.2,0.4467]
[1754547322487,2.77833759,3695.4,3695.3,0.2863]
[1754547322687,21.61333759,3695.4,3695.3,0.5835]
[1754547322890,21.61333759,3695.4,3695.3,1.0302]
[1754547323297,62.41333759,3695.4,3695.3,1.0302]
[1754547323687,59.638,3695.4,3695.3,1.0302]
[1754547323891,62.41633759,3695.4,3695.3,1.0302]
[1754547324795,18.85,3695.4,3695.3,1.57132]
[1754547324992,2.77833759,3695.8,3695.7,0.5835]
[1754547325199,43.57833759,3695.8,3695.7,1.0302]
[1754547325494,62.43033759,3695.8,3695.7,1.0302]
[1754547325882,40.8,3695.8,3695.7,7.0302]
[1754547326083,2.77833759,3696.5,3696.4,1.0302]
[1754547326292,38.957,3696.6,3696.5,1.27395]
[1754547326594,58.768,3696.6,3696.5,0.5835]
[1754547326794,58.768,3696.6,3695.7,0.54105]
[1754547326795,0.662,3696.5,3695.7,0.54105]
[1754547326987,0.662,3696.5,3696.1,0.2863]
[1754547326988,2.77833759,3696.2,3696.1,0.2863]
[1754547327296,21.66133759,3696.2,3696.1,1.0302]
[1754547327595,40.8,3696.4,3696.3,1.0302]
[1754547327897,18.886,3696.4,3696.3,1.0302]
[1754547328095,2.77833759,3696.9,3696.6,0.54093]
[1754547328395,18.884,3696.8,3695.8,1.0302]
[1754547328593,18.884,3696.8,3696.5,1.0302]
[1754547328794,18.884,3696.8,3696.4,0.54095]
[1754547328795,19.3318,3696.8,3696.7,1.0302]
[1754547329098,18.884,3696.8,3696.7,1.0302]
[1754547329795,43.57833759,3696.9,3696.8,0.5409]
[1754547329996,62.45833759,3696.9,3696.8,1.5994]
[1754547330189,59.68,3696.9,3696.8,1.5994]
[1754547330391,18.88,3696.9,3696.8,1.5994]
[1754547331197,18.88,3696.9,3696.8,1.0585]
[1754547331698,21.65833759,3696.9,3696.8,1.0585]
[1754547334697,21.65833759,3696.9,3696.8,1.5994]
[1754547335302,22.38528784,3696.9,3696.8,1.0585]
[1754547335802,23.70988784,3696.9,3696.8,0.6028]
[1754547335999,24.00108784,3696.9,3696.8,0.3099]
[1754547336199,1.1107,3696.4,3696.3,1.2939]
[1754547336401,23.67994891,3696.4,3696.3,1.2939]
[1754547336606,0.6443,3696.2,3695.6,1.0585]
[1754547336797,0.83217,3696.3,3695.5,0.54108]
[1754547336798,0.4304,3695.8,3695.7,0.7486]
[1754547336998,0.4304,3695.8,3695.7,1.0585]
[1754547337303,0.72919397,3695.8,3695.2,0.54113]
[1754547337503,19.58819397,3695.7,3695.2,0.54113]
[1754547337704,1.15959397,3695.6,3695.3,1.0585]
[1754547337905,1.15959397,3695.6,3695.2,0.54113]
[1754547337906,19.59019329,3695.5,3695.4,1.0585]
[1754547338202,20.02059329,3695.5,3695.4,1.0585]
[1754547338610,23.01283088,3695.5,3695.4,1.0585]
[1754547338812,23.01283088,3695.5,3694.8,0.54119]
[1754547339011,0.4304,3695.3,3695.0,0.7486]
[1754547339214,19.58619329,3695.2,3694.7,0.7486]
[1754547339422,0.72919329,3695.1,3694.6,0.54121]
[1754547339609,0.72919329,3695.0,3694.7,1.0585]
[1754547339916,0.72919329,3694.9,3694.8,1.59969]
[1754547340511,0.72919329,3694.9,3694.8,1.0585]
[1754547340707,1.37349329,3694.9,3694.8,0.6028]
[1754547340916,0.72919329,3694.9,3694.8,1.0585]
[1754547341512,0.96876114,3695.1,3694.8,1.0585]
[1754547341513,0.50336114,3695.4,3695.3,1.27542]
[1754547341714,1.45689978,3695.7,3695.3,0.54112]
[1754547341915,1.45689978,3695.7,3694.8,6.0]
[1754547341916,1.45689978,3695.8,3695.5,0.54109]
[1754547342110,1.45689978,3695.8,3695.7,0.7343]
[1754547342309,1.88729978,3695.8,3695.7,0.7343]
[1754547342510,2.17849978,3695.8,3695.7,0.4244]
[1754547342816,2.39239978,3695.8,3695.7,0.2929]
[1754547343017,0.9355,3695.8,3695.7,0.2929]
[1754547343523,0.4304,3695.8,3695.7,0.7343]
[1754547343720,18.856,3696.0,3695.7,0.7343]
[1754547344016,19.5776,3696.0,3695.7,0.7343]
[1754547344212,21.03449978,3696.0,3695.9,0.4414]
[1754547344412,19.5776,3696.0,3695.9,0.7343]
[1754547344710,19.7915,3696.0,3695.9,0.6028]
[1754547344916,22.56983759,3696.0,3695.9,0.2929]
[1754547345108,22.56983759,3696.0,3695.6,0.4414]
[1754547345312,1.44732123,3695.8,3695.7,0.2929]
[1754547345513,21.24782123,3695.8,3695.7,0.2929]
[1754547346218,19.8005,3695.8,3695.7,0.2929]
[1754547346617,19.8005,3695.8,3695.4,0.5411]
[1754547346816,1.66312466,3695.7,3695.4,0.9825]
[1754547347023,19.8005,3695.6,3695.5,0.2929]
[1754547347216,21.24972466,3695.6,3695.5,0.2929]
[1754547347415,19.8005,3695.6,3695.5,0.2929]
[1754547347614,0.9355,3695.4,3694.8,1.27549]
[1754547347815,0.4304,3695.2,3695.1,0.4244]
[1754547348013,19.2854,3695.2,3695.1,0.7343]
[1754547348215,19.2854,3695.2,3695.0,0.54115]
[1754547348216,0.2912,3695.1,3695.0,0.3099]
[1754547348422,18.855,3695.2,3695.1,1.27545]
[1754547348718,0.64559186,3695.3,3695.2,0.2929]
[1754547348918,1.0,3697.0,3695.5,0.1315]
[1754547348919,1.92759511,3696.0,3695.5,0.1315]
[1754547349118,0.7216,3696.2,3695.0,0.7343]
[1754547349317,0.4304,3696.0,3695.1,0.6028]
[1754547349511,0.4304,3695.9,3695.2,0.7343]
[1754547349818,19.5856,3695.9,3695.8,0.54105]
[1754547350123,19.2944,3695.9,3695.8,1.27535]
[1754547350314,18.864,3695.9,3695.8,1.27535]
[1754547350514,19.5856,3695.9,3695.8,0.7343]
[1754547350915,19.2944,3695.9,3695.8,0.7343]
[1754547352120,19.5856,3695.9,3695.8,0.7343]
[1754547352527,19.7995,3695.9,3695.8,0.7343]
[1754547352825,0.9355,3695.8,3695.7,0.2929]
[1754547353521,2.33621279,3695.8,3695.7,0.2929]
[1754547354434,0.4921,3695.3,3695.2,0.94023]
[1754547354619,1.64291279,3695.3,3695.2,1.88493]
[1754547355123,1.93411279,3695.3,3695.2,1.88493]
[1754547355318,1.93411279,3695.3,3695.2,1.1334]
[1754547355513,1.93411279,3695.3,3695.2,0.692]
[1754547355514,2.33621279,3695.3,3695.2,0.692]
[1754547355719,1.40071279,3695.3,3694.9,0.3099]
[1754547355919,1.6158,3695.0,3694.9,0.709]
[1754547356120,2.33621279,3695.0,3694.7,0.2929]
[1754547356327,0.4921,3694.7,3694.6,0.94032]
[1754547356528,1.2137,3694.7,3694.6,1.25022]
[1754547356828,1.6158,3694.7,3694.6,1.67462]
[1754547357027,1.6158,3694.7,3694.6,1.54312]
[1754547357522,2.70362,3698.1,3695.4,0.4981]
[1754547357523,18.842,3695.5,3695.4,0.4981]
[1754547357730,21.17843264,3695.5,3695.4,0.2929]
[1754547357927,0.9355,3695.4,3695.1,0.85104]
[1754547358130,1.6158,3695.2,3695.1,1.54304]
[1754547358330,20.96853264,3695.2,3695.1,1.88494]
[1754547358524,20.96853264,3695.2,3695.1,1.3438]
[1754547358725,21.18243264,3695.2,3694.9,0.54117]
[1754547358923,1.4212,3694.5,3694.4,0.9865]
[1754547359130,18.843,3694.6,3694.1,0.1321]
[1754547359435,0.5085,3694.4,3694.3,0.3099]
[1754547359928,0.9504,3694.4,3694.3,0.3099]
[1754547360325,1.67107305,3694.4,3694.3,0.3099]
[1754547360935,1.45677305,3694.4,3694.3,0.7365]
[1754547361229,1.16257305,3694.4,3694.3,0.7365]
[1754547361628,40.8,3694.5,3694.1,0.5413]
[1754547361835,41.2419,3694.5,3694.4,0.7365]
[1754547362231,41.7504,3694.5,3694.4,0.6044]
[1754547362533,41.7504,3694.5,3694.1,0.1321]
[1754547362534,40.8,3694.5,3694.2,0.3099]
[1754547362730,0.9504,3694.3,3694.2,0.3099]
[1754547363334,23.27553759,3694.3,3694.2,0.3099]
[1754547363527,0.6808,3694.1,3694.0,0.3099]
[1754547363724,1.6312,3694.1,3693.0,0.1321]
[1754547363924,0.7361,3693.9,3693.1,0.6044]
[1754547364123,0.9297,3693.7,3693.6,1.67316]
[1754547364326,0.9297,3693.7,3693.6,1.88446]
[1754547364731,18.865,3694.0,3693.9,0.8157]
[1754547364939,1.2239,3694.4,3694.3,0.3953]
[1754547365240,0.98317,3694.3,3693.8,0.3099]
[1754547365431,1.4169,3693.9,3693.8,0.9997]
[1754547365936,1.6312,3693.9,3693.8,0.9997]
[1754547366527,1.6312,3693.9,3693.8,1.1318]
[1754547367229,18.859,3694.1,3693.5,0.3099]
[1754547367230,0.6808,3693.6,3693.5,0.3099]
[1754547367437,1.6312,3693.6,3693.5,0.7052]
[1754547367632,0.6808,3693.3,3693.2,0.5066]
[1754547367826,1.6312,3693.3,3693.2,0.7052]
[1754547368026,1.6312,3693.3,3693.2,1.1318]
[1754547368326,0.2942,3693.6,3693.3,0.54141]
[1754547368527,20.0759,3693.6,3693.5,1.3431]
[1754547368929,20.2689,3693.6,3693.5,0.9997]
[1754547369129,20.4832,3693.6,3693.5,0.9997]
[1754547369324,7.337,3693.6,3693.2,0.67352]
[1754547369532,0.4878,3692.9,3692.8,1.88459]
[1754547369829,1.2239,3692.9,3692.8,1.88459]
[1754547370037,1.1227,3692.9,3692.8,1.88459]
[1754547370236,1.6312,3692.9,3692.8,0.9997]
[1754547371329,1.6312,3692.9,3692.8,0.7052]
[1754547371535,1.6312,3692.8,3692.7,0.3099]
[1754547372531,1.6312,3692.8,3692.7,1.2467]
[1754547372832,0.9297,3692.8,3692.7,1.8846]
[1754547373330,19.3318,3692.8,3692.7,1.8846]
[1754547373531,20.2609,3692.8,3692.7,1.8846]
[1754547373735,20.4752,3692.8,3692.7,0.7052]
[1754547374234,20.4752,3692.8,3692.2,0.54157]
[1754547374537,3.67343759,3692.6,3692.5,0.5085]
[1754547374733,3.67343759,3692.6,3692.3,0.83606]
[1754547374936,0.6808,3692.4,3692.3,1.54126]
[1754547375232,1.6312,3692.4,3692.3,1.54126]
[1754547376431,1.6312,3692.3,3692.2,0.85147]
[1754547376640,1.6312,3692.3,3692.2,1.24677]
[1754547377142,1.6312,3692.3,3692.2,0.7052]
[1754547377540,1.6312,3692.3,3692.2,0.9997]
[1754547377733,1.6312,3692.3,3692.2,0.7052]
[1754547377940,0.8951,3692.3,3692.2,1.54127]
[1754547378142,0.8951,3692.3,3692.2,1.88467]
[1754547378143,19.3228,3692.3,3692.2,1.88467]
[1754547378438,19.7301,3692.3,3692.2,1.54127]
[1754547378738,20.4662,3692.3,3692.2,1.54127]
[1754547379134,0.6808,3692.0,3691.9,0.93691]
[1754547379334,0.9297,3692.0,3691.9,1.3431]
[1754547379535,19.1126,3692.0,3691.9,1.3431]
[1754547379832,20.0549,3692.0,3691.9,1.3431]
[1754547380535,20.0549,3692.0,3691.7,0.3099]
[1754547380536,0.2062,3691.8,3691.7,0.3099]
[1754547380837,0.2062,3691.8,3691.7,0.7052]
[1754547380838,1.6312,3691.8,3691.7,0.7052]
[1754547381031,1.6312,3691.8,3691.7,0.9997]
[1754547381540,1.6312,3691.8,3691.7,0.7052]
[1754547381740,1.6312,3691.8,3691.7,0.5085]
[1754547381937,1.6312,3691.8,3691.4,0.2945]
[1754547382244,1.6312,3691.4,3691.3,1.2469]
[1754547382443,20.4632,3691.4,3691.3,0.7052]
[1754547382638,0.2816,3691.1,3691.0,1.03295]
[1754547382939,19.1126,3691.1,3691.0,1.88485]
[1754547383137,20.0549,3691.1,3691.0,1.88485]